bitfinex/quotes_ETHUSD_20260202
["timestamp","ask_amount","ask_price","bid_price","bid_amount"]
[1770056720171,11.28922212,2349.1,2348.4,1.06455395]
[1770056720372,0.905084,2349.0,2348.4,1.06455395]
[1770056720707,11.28922212,2349.1,2348.3,1.0645906]
[1770056720895,0.90487732,2349.0,2348.2,1.0656143]
[1770056721204,11.28922212,2349.1,2348.3,1.59701071]
[1770056721408,0.90495876,2349.0,2348.4,1.06455205]
[1770056721705,11.28922212,2349.1,2348.3,1.59699509]
[1770056722006,0.90515753,2349.0,2348.2,0.001]
[1770056722203,1.13148797,2349.3,2348.2,0.001]
[1770056722402,1.49294179,2349.5,2348.2,0.001]
[1770056722403,1.95703388,2349.6,2348.2,11.43501429]
[1770056722594,0.90561846,2349.5,2348.2,11.43501429]
[1770056722794,11.28922212,2349.7,2348.3,12.589522]
[1770056723101,0.90568278,2349.6,2348.4,12.32701429]
[1770056723308,11.28922212,2349.7,2348.4,12.32701429]
[1770056723507,0.90547483,2349.6,2348.4,12.32701429]
[1770056723717,1.06394604,2349.8,2348.4,12.32701429]
[1770056723921,0.90539672,2349.7,2348.6,1.06446393]
[1770056724212,2.83806715,2349.8,2348.6,1.06446393]
[1770056724395,0.90524824,2349.7,2348.6,1.06446393]
[1770056724590,2.83806715,2349.8,2348.6,1.06446393]
[1770056724790,0.90524359,2349.7,2348.6,1.06446393]
[1770056725112,2.83806715,2349.8,2348.7,0.66692912]
[1770056725314,0.90505005,2349.7,2348.7,0.66692912]
[1770056725626,2.83806715,2349.8,2348.7,0.66692912]
[1770056725785,1.96893052,2349.7,2348.7,0.66692912]
[1770056725987,0.0011,2348.9,2348.7,1.06440752]
[1770056726198,13.48334573,2349.9,2348.7,1.06440752]
[1770056726515,0.0011,2349.1,2348.7,1.06440752]
[1770056726677,11.28795936,2349.9,2348.7,12.49842181]
[1770056727111,1.06494735,2350.0,2348.7,12.49842181]
[1770056727112,0.0011,2350.0,2348.7,12.49842181]
[1770056727411,1.06495178,2350.0,2348.8,1.67560963]
[1770056728208,1.06495178,2350.0,2348.9,1.06432798]
[1770056728385,13.48566187,2350.0,2348.9,1.06432798]
[1770056729196,12.42071009,2349.9,2348.9,1.06432798]
[1770056730016,13.48462386,2349.9,2348.9,1.06432798]
[1770056730225,1.7741113,2349.8,2349.0,0.69972495]
[1770056732278,1.7741113,2349.8,2349.1,1.06423736]
[1770056733609,0.0011,2350.0,2349.1,1.07704364]
[1770056733812,0.0011,2350.0,2349.1,1.95623736]
[1770056734308,12.35415845,2350.0,2349.1,1.06423736]
[1770056734491,12.35415845,2350.0,2349.1,1.06423338]
[1770056734692,13.48564642,2350.0,2349.1,1.06423338]
[1770056734893,13.06342048,2349.9,2349.1,1.06423338]
[1770056735396,0.0011,2350.0,2349.1,1.06423338]
[1770056735899,12.35415277,2350.0,2349.1,1.06423338]
[1770056736412,13.48564074,2350.0,2348.9,1.06432798]
[1770056737595,13.48564074,2350.0,2348.8,5.14940966]
[1770056737596,11.28922212,2349.7,2348.8,1.06433078]
[1770056737800,1.24207101,2349.6,2348.8,1.06433078]
[1770056738082,0.90733706,2349.5,2348.8,1.06433078]
[1770056738296,0.90745539,2349.4,2348.8,1.06436866]
[1770056738498,13.59530594,2349.6,2348.6,1.06446393]
[1770056738697,0.90768164,2349.5,2348.7,0.66832615]
[1770056738898,0.90768164,2349.4,2348.7,0.66832615]
[1770056739210,13.59530594,2349.6,2348.7,0.66832615]
[1770056739425,0.907667,2349.5,2348.7,0.66832615]
[1770056739582,0.907667,2349.4,2348.7,0.66832615]
[1770056739912,14.72679391,2349.6,2348.7,0.66832615]
[1770056740113,14.09515778,2349.5,2348.6,1.06446393]
[1770056740299,0.90765191,2349.4,2348.6,1.06446393]
[1770056741110,0.90765191,2349.4,2348.5,1.34797157]
[1770056741309,11.28922212,2349.2,2348.5,0.001]
[1770056741518,0.90765191,2349.1,2348.5,0.001]
[1770056741816,11.28922212,2349.2,2348.5,0.001]
[1770056741817,13.328362,2349.0,2348.5,0.001]
[1770056741997,0.90765191,2348.9,2348.5,0.001]
[1770056742196,12.42071009,2349.0,2348.3,0.001]
[1770056742197,12.19687403,2348.8,2348.3,0.001]
[1770056742418,2.12733931,2348.7,2348.3,0.001]
[1770056742717,12.50890952,2348.7,2348.3,0.001]
[1770056742908,12.35374139,2348.5,2347.7,0.001]
[1770056743103,0.90758112,2348.4,2347.7,0.001]
[1770056743309,1.32613225,2348.3,2347.7,0.001]
[1770056744306,1.13148797,2349.0,2347.8,11.44682057]
[1770056744516,2.03849605,2349.0,2348.1,0.01280628]
[1770056744724,2.24115153,2349.4,2348.1,0.01280628]
[1770056744725,2.19559105,2349.4,2348.2,0.893]
[1770056744919,0.90714882,2349.3,2348.2,0.893]
[1770056745091,0.90714882,2349.2,2348.3,2.29730135]
[1770056745923,14.31899384,2349.5,2348.3,2.29730135]
[1770056746098,0.90676544,2349.4,2348.3,2.29730135]
[1770056746429,0.0011,2349.8,2348.6,11.43401429]
[1770056746593,0.90693437,2349.7,2348.6,11.43401429]
[1770056746936,0.0011,2349.8,2348.8,11.44682057]
[1770056747248,0.0011,2349.8,2348.9,1.95732798]
[1770056750334,11.84516653,2349.7,2348.9,1.0643219]
[1770056750516,0.90651015,2349.6,2348.8,1.06435902]
[1770056751110,0.90651015,2349.6,2348.5,1.06450926]
[1770056751111,1.97053406,2349.6,2348.5,1.06450926]
[1770056751332,2.19742919,2349.5,2348.6,0.62156743]
[1770056751537,0.0011,2349.8,2348.6,11.65256604]
[1770056751708,0.90671726,2349.7,2349.0,0.001]
[1770056751902,1.06502678,2349.8,2349.0,0.001]
[1770056751903,0.90671726,2349.6,2349.0,0.001]
[1770056752107,12.00368316,2349.8,2349.0,0.001]
[1770056752303,2.64582486,2349.7,2349.0,0.001]
[1770056752510,0.90675563,2349.6,2349.0,0.001]
[1770056752740,0.0011,2349.8,2349.0,0.001]
[1770056752923,0.90673991,2349.7,2349.0,0.001]
[1770056753139,0.90673991,2349.6,2349.0,0.001]
[1770056753310,0.0011,2349.8,2349.0,0.001]
[1770056753509,0.90666525,2349.7,2349.0,0.001]
[1770056753708,0.90666525,2349.6,2349.0,0.001]
[1770056753923,0.37014634,2349.8,2349.0,0.001]
[1770056754245,0.906619,2349.7,2349.0,0.001]
[1770056754446,0.0011,2349.8,2349.0,0.001]
[1770056754611,0.90661583,2349.7,2349.0,0.001]
[1770056754932,1.0650225,2349.8,2349.0,0.001]
[1770056755148,0.90658873,2349.7,2349.0,0.001]
[1770056755342,12.00368826,2349.8,2349.0,0.001]
[1770056755541,10.93865638,2349.6,2348.8,0.001]
[1770056755843,0.90654622,2349.5,2348.8,0.001]
[1770056756044,0.90654622,2349.4,2348.8,0.001]
[1770056756210,10.93865638,2349.6,2348.8,0.001]
[1770056756410,2.11333293,2349.5,2348.8,0.001]
[1770056756610,11.84497487,2349.4,2348.8,0.001]
[1770056756830,0.90631849,2349.3,2348.8,0.001]
[1770056757034,10.93865638,2349.4,2348.8,0.001]
[1770056757235,0.90630798,2349.3,2348.8,0.001]
[1770056757517,1.18449644,2349.2,2348.8,0.001]
[1770056757718,10.93865638,2349.4,2348.8,0.001]
[1770056757937,0.90619688,2349.3,2348.8,0.001]
[1770056758154,3.93568164,2349.8,2348.8,0.001]
[1770056758338,0.90614488,2349.7,2348.8,0.001]
[1770056758513,0.90614488,2349.6,2348.8,0.001]
[1770056758709,1.74026669,2349.8,2348.8,0.001]
[1770056758914,0.90628784,2349.7,2348.8,11.03199861]
[1770056759215,0.0011,2349.8,2348.8,11.03199861]
[1770056759542,0.0011,2349.8,2348.9,1.06432798]
[1770056760257,11.84489418,2349.7,2348.9,1.06432798]
[1770056760434,11.84489418,2349.6,2348.8,1.06536831]
[1770056760646,0.9062378,2349.5,2348.8,1.06536831]
[1770056760827,0.9062378,2349.4,2348.8,1.06536831]
[1770056761032,12.1232558,2349.6,2348.8,1.06536831]
[1770056761227,0.90593971,2349.5,2348.8,1.06536831]
[1770056761433,2.20861453,2349.4,2348.8,0.001]
[1770056761644,1.30291955,2349.4,2348.8,0.001]
[1770056761847,2.19653407,2349.8,2348.8,0.001]
[1770056762040,0.90549718,2349.7,2348.8,0.001]
[1770056762239,1.13258797,2349.8,2348.8,0.001]
[1770056762240,0.90549718,2349.6,2348.8,0.001]
[1770056762442,0.90549718,2349.5,2348.8,0.001]
[1770056762740,10.93865638,2349.4,2348.8,0.001]
[1770056763047,1.13148797,2349.5,2348.3,1.06456745]
[1770056763048,13.05105467,2349.3,2348.3,1.06456745]
[1770056763248,10.93865638,2349.1,2348.2,1.06464467]
[1770056763419,12.00293905,2349.0,2347.9,1.0647733]
[1770056763616,12.07014435,2348.9,2347.8,0.001]
[1770056763815,10.93865638,2348.7,2347.8,0.001]
[1770056764136,10.93865638,2348.3,2347.5,0.001]
[1770056764446,10.93865638,2348.3,2347.2,4.26138541]
[1770056764447,10.93865638,2348.1,2347.2,0.001]
[1770056764647,12.07014435,2348.1,2347.2,0.001]
[1770056764850,12.07014435,2348.1,2348.0,0.001]
[1770056765023,13.51575296,2348.1,2347.2,0.001]
[1770056765224,12.38426499,2348.1,2347.2,0.001]
[1770056765426,12.38426499,2348.1,2347.0,0.001]
[1770056765427,12.07014435,2347.7,2346.2,0.001]
[1770056765674,10.93865638,2347.5,2346.2,0.001]
[1770056765841,10.93865638,2347.1,2346.2,0.001]
[1770056766039,10.93865638,2347.1,2346.0,0.001]
[1770056766040,10.93865638,2346.7,2346.0,0.001]
[1770056766264,10.93865638,2346.7,2345.6,1.06662442]
[1770056766431,10.93865638,2346.7,2345.6,1.06662201]
[1770056767050,10.93865638,2346.7,2345.6,0.0008024]
[1770056767449,1.06550739,2346.3,2345.1,1.06705262]
[1770056767651,1.62661042,2346.2,2345.2,0.62242631]
[1770056768039,1.62661042,2346.2,2345.1,1.06705262]
[1770056768040,12.5652668,2346.2,2345.1,0.001]
[1770056769638,10.93865638,2346.0,2345.1,0.001]
[1770056771574,2.69217125,2346.2,2345.1,0.001]
[1770056771727,0.35511158,2346.4,2345.1,11.03199861]
[1770056771923,0.35511158,2346.4,2345.2,0.01280628]
[1770056772161,1.42058956,2346.4,2345.1,11.03199861]
[1770056772461,12.35924594,2346.4,2345.1,0.001]
[1770056773761,10.94826266,2346.0,2344.9,0.0018024]
[1770056773925,10.94826266,2346.0,2344.5,1.06630259]
[1770056773926,10.93865638,2345.7,2344.5,1.06631551]
[1770056774130,10.93865638,2345.7,2344.6,1.06627886]
[1770056774329,10.93865638,2345.7,2344.5,1.06629229]
[1770056774871,10.93865638,2345.7,2344.7,1.06622924]
[1770056775032,1.09386564,2345.6,2344.6,1.06625109]
[1770056775680,1.09386564,2345.6,2344.2,4.26583961]
[1770056775831,2.15971493,2345.6,2344.2,4.26583961]
[1770056776761,2.15971493,2345.6,2345.3,0.001]
[1770056776979,2.15971493,2345.6,2344.1,1.0673106]
[1770056777143,12.67481682,2345.5,2344.2,0.53333402]
[1770056777755,13.74072762,2345.5,2344.3,1.06641641]
[1770056778849,10.93865638,2345.4,2344.3,1.06641641]
[1770056779860,12.00460664,2345.4,2344.3,1.06641641]
[1770056781175,0.1024,2344.9,2343.9,0.001]
[1770056781472,12.61006338,2344.8,2343.6,0.001]
[1770056781840,1.06623448,2344.7,2343.7,10.89981409]
[1770056782084,11.71606338,2344.7,2343.5,0.001]
[1770056782266,11.71606338,2344.5,2343.5,0.001]
[1770056782942,11.71606338,2344.3,2343.4,0.0018032]
[1770056783143,11.71606338,2344.2,2343.1,0.001]
[1770056783594,14.58795938,2343.9,2342.7,0.0008024]
[1770056783750,0.894,2343.8,2342.7,1.06791392]
[1770056783951,2.32772891,2343.7,2342.7,0.0008024]
[1770056784499,0.01280628,2343.4,2342.1,1.06741812]
[1770056784685,0.01280628,2343.4,2342.0,4.59734971]
[1770056784686,11.71606338,2343.3,2342.0,4.59734971]
[1770056784882,11.71606338,2343.3,2341.9,4.26987511]
[1770056784883,2.871896,2342.9,2341.8,1.06753049]
[1770056785085,13.17613995,2342.8,2341.7,3.06757076]
[1770056785405,13.17613995,2342.8,2341.7,3.06757701]
[1770056785722,13.17613995,2342.8,2341.8,1.0675486]
[1770056786465,1.46007657,2342.8,2341.9,10.89981409]
[1770056786661,0.22313147,2343.6,2341.9,10.89981409]
[1770056787078,0.01280792,2343.1,2341.9,10.89981409]
[1770056788387,0.01280792,2343.4,2342.0,11.96727779]
[1770056788567,0.01280792,2343.1,2342.0,11.96727779]
[1770056788768,0.01280792,2343.1,2342.1,1.62371326]
[1770056789659,0.01280792,2343.1,2342.2,0.001]
[1770056790185,11.7288713,2343.1,2342.2,0.001]
[1770056790489,0.01280792,2342.4,2341.7,2.0]
[1770056790660,0.01280792,2342.4,2341.1,4.36161289]
[1770056790661,0.01280792,2341.8,2341.2,1.06782846]
[1770056790861,0.01280792,2341.5,2341.1,1.15806212]
[1770056791091,0.894,2341.6,2340.4,0.57043693]
[1770056791399,0.01280792,2342.1,2340.9,1.06793799]
[1770056791400,1.26100634,2341.5,2340.9,1.06793799]
[1770056791610,0.1024,2342.7,2341.1,1.06786745]
[1770056791761,0.894,2342.4,2341.1,1.08068111]
[1770056791974,0.894,2342.4,2341.1,1.06786745]
[1770056791975,12.61006338,2342.4,2341.1,1.06786745]
[1770056792176,0.01281366,2341.7,2340.6,1.06810219]
[1770056792483,0.01281366,2342.0,2340.6,1.06810219]
[1770056792484,0.01281366,2341.5,2340.6,1.06810219]
[1770056792787,1.07993594,2342.8,2340.7,12.62205988]
[1770056793001,0.01281366,2342.5,2340.7,12.62205988]
[1770056793618,11.72887704,2342.5,2340.7,12.62205988]
[1770056794296,0.01281366,2342.2,2340.9,10.89981409]
[1770056794633,0.01281366,2342.8,2340.8,1.06801093]
[1770056794634,0.895,2342.9,2341.1,10.89981409]
[1770056794773,0.01281366,2343.4,2341.6,10.89981409]
[1770056795107,0.01281366,2343.4,2341.8,10.89981409]
[1770056796406,0.01281366,2343.4,2342.0,10.89981409]
[1770056796812,1.26100634,2343.7,2342.0,10.89981409]
[1770056796983,0.01281366,2343.6,2342.2,10.89981409]
[1770056797311,0.01281366,2344.0,2342.2,10.89981409]
[1770056797908,0.895,2344.2,2342.2,10.89981409]
[1770056798508,0.895,2344.2,2342.4,10.89981409]
[1770056798806,15.07772096,2344.6,2342.4,10.89981409]
[1770056799109,0.01281366,2344.1,2342.6,10.89981409]
[1770056799408,0.01281366,2344.1,2342.7,11.79481409]
[1770056799786,0.01281366,2344.4,2342.7,11.79481409]
[1770056799988,1.50905289,2344.5,2342.7,11.79481409]
[1770056800412,1.50905289,2344.5,2342.9,10.89981409]
[1770056800615,11.71606338,2345.0,2343.1,10.89981409]
[1770056800815,0.0008024,2345.1,2343.1,10.89981409]
[1770056801125,0.0008024,2345.1,2343.6,10.89981409]
[1770056801331,0.0008024,2345.1,2343.8,10.89981409]
[1770056801518,0.0011,2345.4,2343.8,10.89981409]
[1770056801719,0.0011,2345.4,2343.9,12.0792955]
[1770056802124,0.0011,2345.4,2344.6,10.91262775]
[1770056802433,0.0008032,2345.8,2345.0,1.06609808]
[1770056803140,0.0008032,2346.5,2345.7,0.01281366]
[1770056803423,0.0019024,2347.3,2345.7,11.79481409]
[1770056803636,0.0019024,2347.3,2345.8,12.09210916]
[1770056803801,0.0019024,2347.3,2346.1,0.01281366]
[1770056804138,0.0019024,2347.3,2345.8,12.0792955]
[1770056804139,1.06697463,2347.3,2345.8,12.0792955]
[1770056804306,0.0019024,2347.3,2345.9,10.91262775]
[1770056804630,0.0019024,2347.3,2346.0,11.96545773]
[1770056804923,0.0019024,2347.3,2346.1,1.6240846]
[1770056805108,0.0019024,2347.3,2346.1,1.63689826]
[1770056805315,0.0019024,2347.3,2346.1,12.52389869]
[1770056806393,0.0008024,2348.0,2346.6,10.91262775]
[1770056806711,0.0008024,2348.0,2346.7,1.95932577]
[1770056806886,0.0008024,2348.0,2346.8,0.62206289]
[1770056807723,11.71686578,2348.0,2346.0,10.89981409]
[1770056807911,11.71606338,2347.8,2346.0,10.89981409]
[1770056808112,11.71606338,2347.6,2346.2,1.0655299]
[1770056808313,11.71606338,2347.6,2346.6,1.06535241]
[1770056808612,1.06496272,2347.5,2345.9,1.06568907]
[1770056808820,12.37097305,2347.5,2345.9,1.06568907]
[1770056809190,11.30601033,2347.5,2345.9,1.06568907]
[1770056809409,1.23709594,2347.4,2346.0,1.7352364]
[1770056809798,1.0649175,2347.6,2346.0,1.7352364]
[1770056809999,12.72449119,2347.6,2346.0,1.7352364]
[1770056810495,12.72449119,2347.6,2346.1,1.06559822]
[1770056810828,11.65957369,2347.4,2346.0,1.06560913]
[1770056811017,11.65957369,2347.4,2345.8,1.17948141]
[1770056811018,11.65957369,2346.8,2345.8,1.06572853]
[1770056811325,11.76197369,2347.2,2346.0,1.06563823]
[1770056811526,11.65957369,2347.0,2345.9,1.06568464]
[1770056812030,11.65957369,2346.8,2345.7,1.06574387]
[1770056812233,11.65957369,2346.8,2345.6,4.26322808]
[1770056812234,11.65957369,2346.8,2345.6,1.06579462]
[1770056812398,11.65957369,2346.8,2345.5,4.26337148]
[1770056812399,12.82553106,2346.7,2345.7,1.06577963]
[1770056812598,13.89085969,2346.7,2345.1,1.06605262]
[1770056813804,12.82553106,2346.7,2345.1,1.06605262]
[1770056814024,13.89085959,2346.7,2345.1,1.06605262]
[1770056814224,1.16595737,2346.7,2345.2,10.83923119]
[1770056814418,1.0653289,2346.7,2345.3,1.19052838]
[1770056814632,11.65957369,2346.9,2345.4,1.06591626]
[1770056815605,11.65957369,2346.8,2345.4,1.06591626]
[1770056815850,11.65957369,2346.4,2345.1,1.06603144]
[1770056816136,13.11283066,2346.3,2345.2,1.06600624]
[1770056816338,11.65957369,2346.2,2345.2,1.06600624]
[1770056816642,11.65957369,2346.2,2344.9,0.0008032]
[1770056816643,1.06559822,2346.1,2344.9,0.0008032]
[1770056816815,12.72517191,2346.1,2344.9,0.0008032]
[1770056817706,11.65957369,2346.1,2344.9,0.0008032]
[1770056817902,1.27251599,2346.0,2344.9,0.0008032]
[1770056819224,2.51878636,2346.3,2344.9,0.0008032]
[1770056819927,1.45325697,2346.3,2344.9,0.0008032]
[1770056820130,2.51877601,2346.3,2344.9,0.0008032]
[1770056820330,1.45325697,2346.3,2344.9,0.0008032]
[1770056820625,14.17834013,2346.3,2344.9,0.0008032]
[1770056820832,1.06559822,2346.1,2344.9,0.0008032]
[1770056821029,2.90960306,2346.2,2344.9,0.0008032]
[1770056821329,1.84403697,2346.2,2344.9,10.82722073]
[1770056821527,1.06651965,2346.5,2345.1,10.82641753]
[1770056821716,11.65957369,2346.3,2344.9,0.0008032]
[1770056821917,1.06651965,2346.5,2344.9,0.0008032]
[1770056821918,11.65957369,2346.1,2344.9,0.0008032]
[1770056822633,11.65957369,2345.7,2344.4,1.06635255]
[1770056822802,11.65957369,2345.7,2344.0,4.26616585]
[1770056822803,13.11272066,2345.6,2344.0,4.26616585]
[1770056823010,12.7254445,2345.5,2344.0,4.26616585]
[1770056823906,12.7254445,2345.5,2344.0,1.0665529]
[1770056824108,12.7254445,2345.5,2343.8,1.06664289]
[1770056824109,11.65957369,2345.0,2343.8,1.06664289]
[1770056824307,11.65957369,2345.0,2343.8,1.06662104]
[1770056824512,11.65957369,2345.0,2343.9,1.06659757]
[1770056824712,1.16595737,2344.9,2343.9,1.06659757]
[1770056825045,0.1024,2345.2,2343.9,1.06659757]
[1770056825260,1.06605262,2345.1,2343.8,4.26647158]
[1770056825938,13.61952035,2345.4,2343.8,4.26647158]
[1770056826233,2.871896,2345.2,2343.8,4.26647158]
[1770056827235,1.06605262,2345.1,2343.8,4.26647158]
[1770056827435,1.06605262,2345.1,2343.9,0.9085852]
[1770056828051,12.72556735,2345.3,2343.9,0.9085852]
[1770056828245,1.06599366,2345.3,2343.9,0.9085852]
[1770056828839,0.894,2345.4,2344.0,0.001]
[1770056829145,5.71650389,2345.6,2344.2,1.0664619]
[1770056829146,2.51899191,2345.6,2344.2,1.0664619]
[1770056829444,1.06584494,2345.6,2344.3,1.61715407]
[1770056830819,1.1237251,2345.9,2344.3,1.61715407]
[1770056831018,12.72533759,2345.8,2344.3,1.61715407]
[1770056831220,11.65957369,2345.5,2344.0,0.001]
[1770056831430,14.53146969,2344.7,2343.8,0.001]
[1770056831642,14.53146969,2344.4,2343.4,0.000804]
[1770056831825,14.01750281,2344.3,2343.4,0.000804]
[1770056832024,0.90350078,2344.2,2343.4,0.000804]
[1770056832225,13.11400203,2344.3,2343.4,0.000804]
[1770056832420,0.90292298,2344.2,2343.4,1.06761249]
[1770056832617,1.13653876,2344.5,2343.4,0.000804]
[1770056832618,14.53146969,2344.5,2343.4,0.000804]
[1770056832813,11.65957369,2344.3,2343.4,0.000804]
[1770056833034,12.56267103,2344.2,2343.4,0.000804]
[1770056833248,1.0665074,2344.1,2343.4,0.000804]
[1770056833637,1.0665074,2344.1,2342.8,0.001]
[1770056833638,11.65957369,2343.9,2342.8,0.001]
[1770056833836,11.65957369,2343.8,2342.8,0.001]
[1770056834020,0.894,2343.9,2342.8,0.001]
[1770056834021,1.25535737,2343.7,2342.8,0.001]
[1770056834221,0.894,2343.9,2342.8,0.001]
[1770056835218,1.96063933,2343.9,2342.8,0.001]
[1770056835548,0.894,2343.9,2342.8,0.001]
[1770056835946,12.72606688,2344.2,2342.8,0.001]
[1770056836125,12.72603626,2344.2,2342.8,0.001]
[1770056836326,1.78857076,2344.1,2342.8,0.001]
[1770056837925,1.06621416,2344.8,2343.0,10.82641753]
[1770056838144,0.90240643,2344.7,2343.0,11.72041753]
[1770056838351,1.9601442,2344.9,2343.3,10.82641753]
[1770056838552,0.894,2344.9,2343.3,10.82641753]
[1770056838930,1.06599423,2345.3,2343.3,10.82641753]
[1770056839150,0.21897193,2345.2,2343.5,10.83923119]
[1770056839355,11.87854562,2345.2,2343.5,10.82641753]
[1770056839558,11.65957369,2344.9,2343.6,1.06673493]
[1770056839757,11.65957369,2344.7,2343.1,4.26784013]
[1770056839959,15.58502131,2344.6,2343.3,1.06683656]
[1770056840261,2.46170577,2344.5,2343.5,1.06676513]
[1770056840437,1.55850213,2344.5,2343.5,1.06676305]
[1770056840640,1.55850213,2344.5,2343.4,1.0667933]
[1770056840966,1.55850213,2344.5,2343.0,1.06698657]
[1770056840967,10.91592167,2344.3,2343.0,1.06698657]
[1770056841139,10.92873533,2344.1,2342.9,1.0670306]
[1770056841338,13.00282897,2344.0,2342.8,0.001]
[1770056841538,13.16572142,2344.0,2342.8,0.001]
[1770056841741,1.18324024,2344.0,2342.8,0.001]
[1770056842054,1.06644209,2344.3,2342.8,11.82135414]
[1770056842254,0.90330199,2344.2,2342.8,11.82135414]
[1770056842561,1.06644209,2344.3,2343.6,0.001]
[1770056842732,0.90369405,2344.2,2343.6,0.001]
[1770056842932,1.06644209,2344.3,2343.6,0.001]
[1770056843134,2.64090445,2344.2,2343.6,0.001]
[1770056843333,0.90373746,2344.1,2343.6,0.001]
[1770056843524,1.73716699,2344.2,2343.6,0.001]
[1770056843726,2.62486153,2344.5,2343.6,0.001]
[1770056843933,0.90405002,2344.4,2343.6,0.001]
[1770056844240,0.90405002,2344.3,2343.6,0.001]
[1770056844439,2.62486153,2344.5,2343.6,0.001]
[1770056844652,0.90437308,2344.4,2343.6,0.001]
[1770056844849,0.90437308,2344.3,2343.6,0.001]
[1770056845053,1.0663594,2344.5,2343.6,0.001]
[1770056845260,0.90429991,2344.5,2343.6,0.001]
[1770056845547,1.97067576,2344.4,2343.6,0.001]
[1770056845752,0.62359913,2344.3,2343.6,0.001]
[1770056845958,1.06636477,2344.5,2343.6,0.001]
[1770056846147,0.90492093,2344.4,2343.6,0.001]
[1770056846361,0.90492093,2344.3,2343.6,0.001]
[1770056846561,11.98228644,2344.5,2343.6,0.001]
[1770056846762,13.55860503,2344.4,2343.6,0.001]
[1770056847076,0.90556406,2344.3,2343.6,0.001]
[1770056847258,0.90556406,2344.2,2343.6,0.001]
[1770056847460,1.7371193,2344.4,2343.6,0.001]
[1770056847675,0.90622239,2344.3,2343.6,0.001]
[1770056847879,1.06633888,2344.5,2343.6,0.001]
[1770056848040,0.90603188,2344.4,2343.6,0.001]
[1770056848241,0.90603188,2344.3,2343.6,0.001]
[1770056848461,2.19006398,2344.5,2343.6,0.001]
[1770056848635,1.12539266,2344.4,2343.6,0.001]
[1770056848968,0.90638626,2344.3,2343.6,0.001]
[1770056849878,1.97280765,2344.3,2343.6,0.001]
[1770056850174,0.90638626,2344.2,2343.6,0.001]
[1770056850672,0.2190064,2344.4,2343.6,0.001]
[1770056850876,0.9059967,2344.3,2343.6,0.001]
[1770056851165,0.21913478,2344.3,2343.6,0.001]
[1770056851373,0.90659916,2344.2,2343.6,0.001]
[1770056851551,0.21913478,2344.3,2343.6,0.001]
[1770056851866,0.90653739,2344.2,2343.6,0.001]
[1770056852167,0.21913478,2344.3,2343.6,0.001]
[1770056852366,0.90727737,2344.2,2343.6,0.001]
[1770056852564,0.90727737,2344.1,2343.6,0.001]
[1770056852769,0.24691437,2344.2,2343.6,0.001]
[1770056853065,0.90754826,2344.1,2343.6,0.001]
[1770056853364,0.24691437,2344.2,2343.6,0.001]
[1770056853581,0.90877626,2344.1,2343.6,0.001]
[1770056853764,0.24691437,2344.2,2343.6,0.001]
[1770056854074,0.90863326,2344.1,2343.6,0.001]
[1770056854243,0.24691437,2344.2,2343.6,0.001]
[1770056854444,0.90880075,2344.1,2343.6,0.001]
[1770056854646,0.24691437,2344.2,2343.6,0.001]
[1770056854842,0.90887278,2344.1,2343.6,0.001]
[1770056855042,0.90885043,2344.0,2343.6,0.001]
[1770056855340,1.34285988,2344.3,2343.6,0.001]
[1770056855562,1.1237251,2344.5,2343.6,0.001]
[1770056855943,0.0011,2344.3,2343.6,0.001]
[1770056862970,0.0011,2344.5,2343.6,11.82135414]
[1770056863872,1.1237251,2344.8,2343.7,11.82035414]
[1770056864061,0.8961,2344.9,2344.0,12.88690704]
[1770056864062,1.1248251,2344.9,2344.0,12.88690704]
[1770056864476,1.1248251,2345.1,2344.0,12.88690704]
[1770056865065,0.0011,2345.1,2344.2,11.82035414]
[1770056865276,1.47543942,2345.5,2344.3,11.82035414]
[1770056866185,1.47543942,2345.6,2344.4,1.06637092]
[1770056866488,1.96157336,2345.8,2344.4,1.06637092]
[1770056866489,2.37124342,2345.8,2344.5,13.53557502]
[1770056866692,12.39136109,2345.7,2344.5,1.71522088]
[1770056866895,12.39136109,2345.7,2344.4,1.06637092]
[1770056867067,1.47543942,2345.5,2344.4,1.06637092]
[1770056867265,1.47543942,2345.6,2344.4,1.06637092]
[1770056867564,0.91078808,2345.5,2344.4,1.06637092]
[1770056867781,0.91078808,2345.4,2344.4,1.06637092]
[1770056867985,0.91078808,2345.3,2344.5,0.62258546]
[1770056868171,1.06585924,2345.6,2344.6,1.06627996]
[1770056868368,11.68361346,2345.0,2343.7,4.26664145]
[1770056868664,13.15905288,2344.8,2343.7,1.06666446]
[1770056868869,14.06946399,2344.7,2343.7,1.06668815]
[1770056869171,0.91041111,2344.6,2343.7,1.0666885]
[1770056869395,0.91041111,2344.5,2343.7,1.0666885]
[1770056869580,13.15905288,2344.7,2343.8,0.001]
[1770056869581,0.91041111,2344.4,2343.8,0.001]
[1770056869780,0.91041111,2344.3,2343.8,1.06763779]
[1770056870086,11.68361346,2344.7,2343.8,1.60117556]
[1770056870282,0.9102815,2344.6,2343.8,1.60117556]
[1770056870487,0.9102815,2344.5,2343.8,1.60117556]
[1770056870673,0.9102815,2344.4,2343.8,1.06763779]
[1770056870994,3.43561775,2344.9,2343.8,1.06763779]
[1770056871300,2.38573736,2344.8,2343.8,1.06763779]
[1770056871465,0.91029794,2344.7,2343.8,1.06763779]
[1770056871667,0.91029794,2344.6,2343.8,1.06763779]
[1770056871868,0.91029794,2344.5,2343.9,0.53342134]
[1770056872072,0.91029794,2344.4,2343.9,0.53342134]
[1770056872371,1.47543942,2344.8,2343.9,1.59997448]
[1770056872570,0.9099377,2344.7,2343.9,1.59997448]
[1770056872793,0.9099377,2344.6,2343.9,1.59997448]
[1770056872991,0.9099377,2344.5,2344.0,0.5867465]
[1770056873173,0.91011486,2344.4,2344.0,0.5867465]
[1770056873376,3.43558334,2344.9,2344.0,0.5867465]
[1770056873704,0.91005166,2344.8,2344.0,0.5867465]
[1770056873882,2.36943942,2344.9,2344.0,0.5867465]
[1770056873883,0.91005166,2344.7,2344.0,0.5867465]
[1770056874071,0.91005166,2344.6,2344.0,0.5867465]
[1770056874271,0.91005166,2344.5,2344.1,1.0665074]
[1770056874482,2.36943942,2344.9,2344.1,1.0665074]
[1770056874687,0.91009557,2344.8,2344.1,1.0665074]
[1770056874894,0.91009557,2344.7,2344.1,1.0665074]
[1770056875172,0.91009557,2344.6,2344.1,1.0665074]
[1770056875398,0.91009557,2344.5,2344.1,1.0665074]
[1770056875592,3.36354325,2344.9,2344.1,1.0665074]
[1770056875895,0.91020148,2344.8,2344.1,1.65845178]